bitfinex/quotes_BTCUSD_20220101
["timestamp","ask_amount","ask_price","bid_price","bid_amount"]
[1641040270255,0.0001,47067.0,47059.0,0.00120677]
[1641040270456,0.0001,47067.0,47065.0,0.00126178]
[1641040270656,0.0001,47067.0,47066.0,0.340745]
[1641040271052,0.0003,47068.0,47066.0,0.393855]
[1641040271535,0.0003,47068.0,47066.0,0.500071]
[1641040271706,0.0003,47068.0,47067.0,0.02118]
[1641040271910,0.0003,47068.0,47067.0,0.336087]
[1641040272107,0.0003,47068.0,47067.0,0.6134444]
[1641040272408,0.0215431,47069.0,47067.0,0.53803973]
[1641040272608,0.0215431,47069.0,47068.0,0.940728]
[1641040272812,0.0215431,47069.0,47068.0,0.34139453]
[1641040273209,0.0215431,47069.0,47068.0,0.86206106]
[1641040273409,0.0215431,47069.0,47068.0,0.87674087]
[1641040273610,0.0215431,47069.0,47068.0,1.15409827]
[1641040273811,0.1000015,47112.0,47068.0,3.16467568]
[1641040274011,0.0001,47074.0,47072.0,0.053098]
[1641040274211,0.0001,47074.0,47073.0,0.828495]
[1641040274515,0.00046201,47074.0,47073.0,0.828395]
[1641040274712,0.00046201,47074.0,47073.0,0.308395]
[1641040274911,0.00046201,47074.0,47073.0,0.308295]
[1641040275352,0.00046201,47074.0,47073.0,0.02117857]
[1641040275553,0.00046201,47074.0,47073.0,0.04205857]
[1641040275753,0.24376769,47074.0,47073.0,0.04205857]
[1641040275951,0.24376769,47074.0,47073.0,0.04195857]
[1641040276351,0.58417469,47074.0,47073.0,0.04185857]
[1641040276550,0.58417469,47074.0,47073.0,0.02098]
[1641040276752,0.58417469,47074.0,47073.0,0.02088]
[1641040276951,0.68417469,47074.0,47073.0,0.02088]
[1641040277155,0.51,47073.0,47068.0,0.00133306]
[1641040277354,0.3,47069.0,47067.0,0.02170654]
[1641040277552,0.3,47069.0,47060.0,0.00490092]
[1641040277553,0.39,47067.0,47060.0,0.00490092]
[1641040277754,0.42104401,47062.0,47060.0,0.00490092]
[1641040278053,0.42104401,47062.0,47061.0,0.00010954]
[1641040278054,0.1001,47062.0,47061.0,0.00010954]
[1641040278253,0.55405379,47062.0,47061.0,0.00010954]
[1641040278453,0.45405379,47062.0,47059.0,0.00014606]
[1641040278653,0.1001,47062.0,47059.0,0.00014606]
[1641040279101,0.1501,47062.0,47059.0,0.00014606]
[1641040279304,0.340407,47061.0,47059.0,0.00014606]
[1641040279503,0.340407,47061.0,47055.0,0.00021909]
[1641040279708,0.440407,47061.0,47055.0,0.00021909]
[1641040279903,0.440407,47061.0,47057.0,0.053132]
[1641040280104,0.27375315,47060.0,47057.0,0.33443448]
[1641040280306,0.340407,47059.0,47058.0,0.00016432]
[1641040280504,0.34015107,47059.0,47058.0,0.00016432]
[1641040280703,0.34015107,47059.0,47054.0,0.03852284]
[1641040280704,0.94394213,47059.0,47054.0,0.03852284]
[1641040280907,0.540407,47055.0,47054.0,0.03852284]
[1641040281105,0.90395379,47055.0,47054.0,0.03852284]
[1641040281303,0.90395379,47055.0,47051.0,0.02247]
[1641040281304,0.2,47053.0,47051.0,0.02247]
[1641040281510,0.92848121,47052.0,47051.0,0.02247]
[1641040281704,0.65400379,47052.0,47051.0,0.02247]
[1641040281904,0.55400379,47052.0,47051.0,0.02247]
[1641040282106,0.440457,47052.0,47051.0,0.02247]
[1641040282949,0.73196338,47052.0,47051.0,0.02247]
[1641040283149,0.84551017,47052.0,47051.0,0.02247]
[1641040283350,0.55400379,47052.0,47051.0,0.02247]
[1641040283551,0.13501321,47052.0,47051.0,0.02247]
[1641040283750,0.02146642,47052.0,47051.0,0.02375711]
[1641040283950,0.02146642,47052.0,47051.0,0.66313616]
[1641040284150,0.02146642,47052.0,47051.0,0.32758245]
[1641040284351,0.13501321,47052.0,47051.0,0.32758245]
[1641040284750,0.03852284,47054.0,47051.0,0.32629534]
[1641040284952,0.03852284,47054.0,47052.0,0.053136]
[1641040285452,0.46668119,47054.0,47052.0,0.053136]
[1641040285651,0.46619725,47054.0,47052.0,0.053136]
[1641040285849,0.46619725,47054.0,47052.0,0.3167316]
[1641040286050,0.0380389,47054.0,47052.0,0.3167316]
[1641040286253,0.0380389,47054.0,47053.0,0.340457]
[1641040287207,0.00861,47061.0,47053.0,0.59347666]
[1641040287406,0.00861,47061.0,47057.0,0.053119]
[1641040287611,0.00010955,47060.0,47058.0,0.361857]
[1641040287808,0.00010955,47060.0,47059.0,0.0012094]
[1641040288109,0.00861,47061.0,47060.0,0.53737446]
[1641040288306,0.00861,47061.0,47060.0,0.84434657]
[1641040288506,0.00861,47061.0,47060.0,0.63434657]
[1641040288507,0.00873781,47061.0,47060.0,0.63434657]
[1641040288708,0.00873781,47061.0,47060.0,0.68746257]
[1641040288906,0.0001,47062.0,47060.0,0.68746257]
[1641040288907,0.0001,47066.0,47062.0,0.106215]
[1641040289208,0.0001,47066.0,47065.0,0.00126636]
[1641040289506,0.00019129,47066.0,47065.0,0.34162436]
[1641040289706,0.00880129,47066.0,47065.0,0.34162436]
[1641040290753,0.00880129,47066.0,47065.0,0.34652492]
[1641040290951,0.00880129,47066.0,47065.0,0.39652492]
[1641040291951,0.00880129,47066.0,47065.0,0.65362685]
[1641040292352,0.00880129,47066.0,47065.0,0.70362685]
[1641040292553,0.0001,47070.0,47068.0,0.00127546]
[1641040292554,0.00795269,47070.0,47068.0,0.00127546]
[1641040292855,0.0001,47073.0,47068.0,0.00127546]
[1641040292856,0.00010269,47076.0,47072.0,0.30993381]
[1641040293054,0.0101,47084.0,47074.0,0.00910806]
[1641040293353,0.0101,47084.0,47081.0,0.34719412]
[1641040293553,0.0001,47088.0,47082.0,0.340424]
[1641040293554,0.0003,47087.0,47082.0,0.340424]
[1641040293753,0.0003,47087.0,47085.0,0.0012437]
[1641040294002,0.0002,47088.0,47086.0,0.30834]
[1641040294202,0.0002,47088.0,47086.0,0.54661149]
[1641040294403,0.00038341,47087.0,47086.0,0.54661149]
[1641040294603,0.0003,47088.0,47086.0,0.54661149]
[1641040294803,0.0003,47088.0,47086.0,0.70708217]
[1641040295204,0.002601,47089.0,47086.0,0.70708217]
[1641040295205,0.0003,47093.0,47087.0,0.32836668]
[1641040295409,0.0003,47093.0,47089.0,0.5232485]
[1641040295605,0.0004,47091.0,47090.0,0.56605521]
[1641040295804,0.0004,47091.0,47090.0,0.30831]
[1641040296003,0.00047303,47091.0,47090.0,0.30831]
[1641040298154,0.21047303,47091.0,47090.0,0.30831]
[1641040298353,0.21047303,47091.0,47089.0,0.0592671]
[1641040298558,0.20974994,47091.0,47089.0,0.05797548]
[1641040298754,0.340457,47090.0,47089.0,0.00489548]
[1641040299353,0.0003,47092.0,47089.0,0.00489548]
[1641040299554,0.0003,47092.0,47090.0,0.340457]
[1641040299953,0.0003,47092.0,47091.0,0.308198]
[1641040301812,0.0003,47092.0,47090.0,0.053091]
[1641040303117,0.0003,47092.0,47091.0,0.340457]
[1641040304317,0.00714129,47093.0,47091.0,0.340457]
[1641040305275,0.00714129,47093.0,47091.0,0.55399187]
[1641040305864,0.0004,47094.0,47091.0,0.55399187]
[1641040306064,0.00024938,47092.0,47091.0,0.60706987]
[1641040306264,0.00024938,47092.0,47091.0,0.55399187]
[1641040306465,0.00024938,47092.0,47091.0,0.50091673]
[1641040307668,0.00024938,47092.0,47090.0,0.053091]
[1641040307867,0.440457,47091.0,47089.0,0.00489548]
[1641040308067,0.340457,47090.0,47089.0,0.00489548]
[1641040308466,0.340457,47090.0,47089.0,0.24070831]
[1641040308665,0.00024938,47092.0,47089.0,0.24070831]
[1641040308868,0.00024938,47092.0,47089.0,0.34689131]
[1641040309105,0.00024938,47092.0,47090.0,0.340457]
[1641040309305,0.00024938,47092.0,47090.0,0.39482601]
[1641040309505,0.00024938,47092.0,47091.0,0.42401074]
[1641040309707,0.00024938,47092.0,47091.0,0.73221574]
[1641040311707,0.0004,47094.0,47091.0,0.98649982]
[1641040311906,0.0004,47094.0,47092.0,0.55274332]
[1641040312109,0.0003,47096.0,47093.0,0.25610283]
[1641040312306,0.0003,47096.0,47094.0,0.308183]
[1641040312509,7.303e-05,47095.0,47094.0,0.361261]
[1641040312957,0.0003,47096.0,47094.0,0.361261]
[1641040313563,0.0003,47096.0,47094.0,0.41433422]
[1641040314059,0.0003,47096.0,47094.0,0.46556044]
[1641040315258,0.0003,47096.0,47094.0,0.47045473]
[1641040316062,0.0003,47096.0,47095.0,0.25580371]
[1641040316261,0.0003,47096.0,47095.0,0.340418]
[1641040316906,0.54319024,47112.0,47101.0,0.32903261]
[1641040317109,0.440457,47111.0,47101.0,0.10615]
[1641040317306,0.440457,47111.0,47101.0,0.053075]
[1641040317506,0.00604532,47109.0,47101.0,0.053075]
[1641040317708,0.340457,47108.0,47101.0,0.053075]
[1641040317906,0.34069436,47108.0,47101.0,0.053075]
[1641040318108,0.24764686,47107.0,47104.0,0.106152]
[1641040318307,0.340457,47106.0,47104.0,0.106152]
[1641040318507,0.2628783,47105.0,47104.0,0.106152]
[1641040318708,0.2628783,47105.0,47099.0,0.053078]
[1641040318709,0.60351788,47105.0,47101.0,0.05308]
[1641040318906,0.340457,47104.0,47101.0,0.05308]
[1641040319106,0.34062132,47104.0,47101.0,0.05308]
[1641040319307,0.00014607,47103.0,47101.0,0.05308]
[1641040319707,0.00012781,47102.0,47101.0,0.05308]
[1641040320953,0.00012781,47102.0,47101.0,0.05797299]
[1641040323156,0.00012781,47102.0,47101.0,0.39842999]
[1641040323356,7.81e-06,47102.0,47101.0,0.92943526]
[1641040323555,0.00603447,47109.0,47101.0,0.93071827]
[1641040323556,0.00578649,47109.0,47101.0,0.93071827]
[1641040323756,0.00578649,47109.0,47108.0,0.00120444]
[1641040324005,0.00578649,47109.0,47108.0,0.70560933]
[1641040324604,0.00578649,47109.0,47108.0,1.16391433]
[1641040325208,0.14662241,47124.0,47119.0,0.00128834]
[1641040325412,0.00918266,47124.0,47120.0,0.48224469]
[1641040325605,0.00918266,47124.0,47123.0,0.00122469]
[1641040325805,0.00918266,47124.0,47123.0,0.56777276]
[1641040326004,0.00958433,47124.0,47123.0,0.56281213]
[1641040326204,0.00070167,47124.0,47123.0,0.92586839]
[1641040326408,0.0001,47129.0,47126.0,1.244005]
[1641040326610,0.0008,47134.0,47130.0,0.304126]
[1641040326906,0.002311,47159.0,47133.0,0.05]
[1641040327107,1.18789462,47166.0,47151.0,0.00126299]
[1641040327307,0.31794379,47161.0,47151.0,0.33475758]
[1641040327505,0.35843211,47159.0,47156.0,0.053017]
[1641040327783,0.24588514,47161.0,47156.0,0.052917]
[1641040327968,0.00361,47161.0,47151.0,0.00116299]
[1641040328169,0.00028073,47159.0,47151.0,0.00106299]
[1641040328568,0.00062077,47158.0,47153.0,0.105929]
[1641040328768,0.00062077,47158.0,47154.0,0.303754]
[1641040328968,0.35261869,47155.0,47153.0,0.105829]
[1641040329273,0.0001,47152.0,47151.0,0.58261983]
[1641040329468,0.55261869,47155.0,47151.0,0.58251983]
[1641040329469,0.53326643,47155.0,47151.0,0.58251983]
[1641040329668,0.53326643,47155.0,47147.0,0.81643913]
[1641040329669,0.0001,47153.0,47148.0,0.58241983]
[1641040329869,0.0001,47153.0,47148.0,0.58231983]
[1641040330069,0.11354679,47149.0,47146.0,0.69980496]
[1641040330269,0.11354679,47149.0,47144.0,0.81770251]
[1641040330270,0.0001,47153.0,47147.0,0.34016]
[1641040330470,0.0001,47153.0,47149.0,0.053024]
[1641040330673,0.0001,47153.0,47149.0,0.043024]
[1641040330871,0.0001,47153.0,47149.0,0.042924]
[1641040331076,0.0001,47153.0,47149.0,0.042824]
[1641040331270,0.0001,47153.0,47149.0,0.042724]
[1641040331515,0.2500382,47151.0,47147.0,0.69980496]
[1641040331719,0.3,47148.0,47147.0,0.69960496]
[1641040331920,0.4,47148.0,47147.0,0.69950496]
[1641040332116,0.5,47148.0,47147.0,0.69940496]
[1641040332316,0.5,47148.0,47134.0,0.00127491]
[1641040332317,0.0001,47147.0,47134.0,0.00127491]
[1641040332517,0.0001,47142.0,47136.0,0.38048501]
[1641040332718,0.0001,47142.0,47137.0,0.303799]
[1641040332916,0.0001,47142.0,47136.0,0.38048501]
[1641040333118,0.0001,47142.0,47138.0,0.00020084]
[1641040333317,0.0001,47142.0,47137.0,0.0002191]
[1641040333817,0.0001,47142.0,47136.0,0.00023735]
[1641040334420,0.0001,47142.0,47138.0,0.00488668]
[1641040334621,0.1,47139.0,47138.0,0.00488668]
[1641040334821,0.34018,47139.0,47138.0,0.00488668]
[1641040335020,0.60372679,47139.0,47138.0,0.00488668]
[1641040335653,0.90372679,47139.0,47138.0,0.00488668]
[1641040335952,0.80372679,47139.0,47138.0,0.00488668]
[1641040336353,0.69018,47139.0,47138.0,0.00488668]
[1641040336553,0.49018,47139.0,47138.0,0.00488668]
[1641040337357,0.60372679,47139.0,47138.0,0.00488668]
[1641040337554,0.80372679,47139.0,47138.0,0.00488668]
[1641040337954,0.60372679,47139.0,47138.0,0.00488668]
[1641040338557,0.49044479,47139.0,47138.0,0.00488668]
[1641040339709,0.39044479,47139.0,47138.0,0.00488668]
[1641040340510,0.34044479,47139.0,47138.0,0.00488668]
[1641040344349,0.66329254,47139.0,47138.0,0.00488668]
[1641040344850,0.59044479,47139.0,47138.0,0.00488668]
[1641040345050,0.49044479,47139.0,47138.0,0.00488668]
[1641040345749,0.69044479,47139.0,47138.0,0.00488668]
[1641040346150,0.69905479,47139.0,47138.0,0.00488668]
[1641040349718,0.81260158,47139.0,47138.0,0.00488668]
[1641040349917,0.81260158,47139.0,47125.0,0.00868266]
[1641040350114,0.2,47126.0,47125.0,0.00868266]
[1641040350357,0.2,47126.0,47125.0,8.266e-05]
[1641040350358,0.59018,47126.0,47125.0,8.266e-05]
[1641040350558,0.59018,47126.0,47118.0,0.81643913]
[1641040350559,0.00379028,47120.0,47118.0,0.68755057]
[1641040350866,0.93947908,47119.0,47116.0,0.70460003]
[1641040351056,0.31354679,47117.0,47116.0,0.00010003]
[1641040351257,0.17680647,47116.0,47114.0,0.4917465]
[1641040351464,0.31354679,47115.0,47114.0,0.00888187]
[1641040351659,0.80372679,47115.0,47114.0,0.00888187]
[1641040351861,0.80372679,47115.0,47103.0,0.00128106]
[1641040351862,0.90372679,47115.0,47103.0,0.00128106]
[1641040352059,0.80372679,47112.0,47103.0,0.00128106]
[1641040352259,0.98143695,47112.0,47103.0,0.00128106]
[1641040352465,0.34018,47112.0,47110.0,0.3334349]
[1641040352663,0.17680647,47116.0,47111.0,0.34218]
[1641040352861,0.17680647,47116.0,47111.0,0.002]
[1641040353059,0.17680647,47116.0,47112.0,0.00067554]
[1641040353262,0.17680647,47116.0,47113.0,0.34018]
[1641040353462,0.17680647,47116.0,47112.0,0.00067554]
[1641040353661,0.17680647,47116.0,47114.0,0.00063903]
[1641040353864,0.82968824,47115.0,47114.0,0.00063903]
[1641040354102,0.92968824,47115.0,47114.0,0.00063903]
[1641040354303,0.69326,47115.0,47114.0,0.00063903]
[1641040354802,0.34018,47115.0,47114.0,0.00063903]
[1641040355202,0.17680647,47116.0,47114.0,0.00063903]
[1641040356606,0.54018,47115.0,47114.0,0.00063903]
[1641040356804,0.34018,47115.0,47114.0,0.00063903]
[1641040357106,0.54018,47115.0,47114.0,0.00063903]
[1641040357406,0.64018,47115.0,47114.0,0.00063903]
[1641040357613,0.85372679,47115.0,47114.0,0.00063903]
[1641040357851,0.86233679,47115.0,47114.0,0.00063903]
[1641040358050,0.2,47111.0,47101.0,0.002]
[1641040358252,0.32215679,47115.0,47101.0,0.002]
[1641040358253,0.2,47109.0,47101.0,0.002]
[1641040358451,0.2,47107.0,47102.0,0.00021909]
[1641040358650,0.34018,47106.0,47102.0,0.00021909]
[1641040359049,0.34018,47106.0,47093.0,0.25941221]
[1641040359050,0.1,47106.0,47093.0,0.25941221]
[1641040359249,0.37504597,47103.0,47093.0,0.25941221]
[1641040359451,0.37504597,47103.0,47094.0,0.00014606]
[1641040359651,0.47504597,47103.0,47094.0,0.00014606]
[1641040360053,0.49421214,47103.0,47094.0,0.00014606]
[1641040360258,0.52687158,47102.0,47094.0,0.00014606]
[1641040361055,0.54588706,47102.0,47094.0,0.00014606]
[1641040361512,0.80504316,47102.0,47094.0,0.00014606]
[1641040361715,0.80573218,47102.0,47094.0,0.00014606]
[1641040361912,0.01901548,47102.0,47094.0,0.00014606]
[1641040362115,0.03747666,47102.0,47101.0,0.63053922]
[1641040362315,0.01846118,47102.0,47101.0,0.97071922]
[1641040362714,0.01846118,47102.0,47101.0,0.60071922]
[1641040363314,0.00023242,47104.0,47101.0,0.60071922]
[1641040363315,0.00023242,47104.0,47101.0,0.26053922]
[1641040363818,0.00023242,47104.0,47098.0,0.00120095]
[1641040364215,0.00023242,47104.0,47101.0,0.00489051]
[1641040364414,0.34018,47103.0,47101.0,0.00489051]
[1641040364916,0.00023242,47104.0,47101.0,0.00489051]
[1641040365115,0.01878866,47103.0,47101.0,0.00489051]
[1641040365559,0.01853335,47103.0,47101.0,0.00489051]
[1641040366857,0.00023242,47104.0,47101.0,0.00489051]
[1641040367458,0.34018,47103.0,47101.0,0.00489051]
[1641040367657,0.2,47102.0,47101.0,0.00489051]
[1641040367859,0.54018,47102.0,47101.0,0.00489051]
[1641040368062,0.91851269,47102.0,47101.0,0.00489051]
[1641040369000,0.3,47102.0,47101.0,0.00489051]
[1641040369203,0.31820924,47102.0,47101.0,0.00489051]
[1641040369407,0.89031196,47102.0,47093.0,0.00016432]
[1641040369603,0.89031196,47102.0,47081.0,0.002]
[1641040369604,0.2,47095.0,47081.0,0.002]
[1641040369804,0.2,47093.0,47081.0,0.002]
[1641040370004,0.2,47093.0,47082.0,0.00020084]
[1641040370304,0.8376087,47092.0,47082.0,0.00020084]
[1641040370505,0.053108,47090.0,47082.0,0.00020084]
[1641040370707,0.2,47091.0,47082.0,0.00020084]
[1641040370904,0.00022258,47092.0,47082.0,0.00020084]
[1641040371104,0.02174732,47092.0,47082.0,0.00140117]
[1641040371308,0.02174732,47092.0,47088.0,0.00129041]
[1641040371504,0.02174732,47092.0,47089.0,0.28000817]
[1641040371707,0.02174732,47092.0,47090.0,0.34018]
[1641040371905,0.02174732,47092.0,47091.0,1.64001229]
[1641040372108,0.02174732,47092.0,47091.0,1.94449829]
[1641040372307,0.02174732,47092.0,47091.0,1.94574708]
[1641040372308,0.00022258,47092.0,47091.0,1.94574708]
[1641040373367,0.00022258,47092.0,47091.0,1.00574708]
[1641040373563,0.00022258,47092.0,47091.0,1.29088565]
[1641040373766,0.00022258,47092.0,47091.0,1.34396865]
[1641040375666,0.00022258,47092.0,47091.0,1.38042186]
[1641040375867,0.00022258,47092.0,47091.0,1.34886028]
[1641040376265,0.00022258,47092.0,47091.0,1.01063871]
[1641040377509,0.00022258,47092.0,47091.0,1.71339919]
[1641040377710,0.00022258,47092.0,47091.0,1.39204951]
[1641040378412,0.00022258,47092.0,47091.0,1.39080072]
[1641040378609,0.00022258,47092.0,47091.0,0.68804024]
[1641040379410,0.00022258,47092.0,47091.0,0.00489163]
[1641040379810,0.21022258,47092.0,47091.0,0.00489163]
[1641040380453,0.41022258,47092.0,47091.0,0.00489163]
[1641040380853,0.84892641,47092.0,47091.0,0.00489163]
[1641040381057,0.51022258,47092.0,47091.0,0.00489163]
[1641040381253,0.5316488,47092.0,47091.0,0.00489163]
[1641040381855,0.5316488,47092.0,47091.0,0.00105857]
[1641040382253,0.55330508,47092.0,47091.0,0.00105857]
[1641040382456,0.53187886,47092.0,47091.0,0.00105857]
[1641040383455,0.55244499,47092.0,47091.0,0.00105857]
[1641040383660,0.53078871,47092.0,47091.0,0.00105857]
[1641040384308,0.54894978,47092.0,47091.0,0.00105857]
[1641040385110,0.51022258,47092.0,47091.0,0.00105857]
[1641040385310,0.53004705,47092.0,47091.0,0.00105857]
[1641040386411,0.43004705,47092.0,47091.0,0.00105857]
[1641040387012,0.44908648,47092.0,47091.0,0.00105857]
[1641040387212,0.42926201,47092.0,47091.0,0.00489163]
[1641040387412,0.79070266,47092.0,47091.0,0.00489163]
[1641040387613,0.77166323,47092.0,47091.0,0.00489163]
[1641040388860,0.8896748,47092.0,47091.0,0.00489163]
[1641040389660,0.6896748,47092.0,47091.0,0.00489163]
[1641040389859,0.71041233,47092.0,47091.0,0.00489163]
[1641040390061,0.87041755,47092.0,47091.0,0.00489163]
[1641040390258,0.8924074,47092.0,47091.0,0.00489163]
[1641040390458,0.87166987,47092.0,47091.0,0.00489163]
[1641040391262,0.89205561,47092.0,47091.0,0.00489163]
[1641040391508,0.87006576,47092.0,47091.0,0.00489163]
[1641040391706,0.87027182,47092.0,47091.0,0.00489163]
[1641040392308,0.89224278,47092.0,47091.0,0.00489163]
[1641040392507,0.87185704,47092.0,47091.0,0.00489163]
[1641040393109,0.53167704,47092.0,47091.0,0.00489163]
[1641040393311,0.55110619,47092.0,47091.0,0.00489163]
[1641040393509,0.52913523,47092.0,47091.0,0.00489163]
[1641040394310,0.54808016,47092.0,47091.0,0.00489163]
[1641040394510,0.52865101,47092.0,47091.0,0.00489163]
[1641040395365,0.54771664,47092.0,47091.0,0.00489163]
[1641040395566,0.52877171,47092.0,47091.0,0.00489163]
[1641040396365,0.54777093,47092.0,47091.0,0.00489163]
[1641040396564,0.5287053,47092.0,47091.0,0.00489163]
[1641040397466,0.55007499,47092.0,47091.0,0.00489163]
[1641040397667,0.53107577,47092.0,47091.0,0.00489163]
[1641040398567,0.87125577,47092.0,47091.0,0.00489163]
[1641040399003,0.88985062,47092.0,47091.0,0.00489163]
[1641040399204,0.86848093,47092.0,47091.0,0.00489163]
[1641040399410,0.68975389,47092.0,47091.0,0.00489163]
[1641040399606,0.67115904,47092.0,47091.0,0.00489163]
[1641040400305,0.87115904,47092.0,47091.0,0.00489163]
[1641040400606,0.87147867,47092.0,47091.0,0.00489163]
[1641040401207,1.71356043,47092.0,47091.0,0.00489163]
[1641040401409,1.7354267,47092.0,47091.0,0.00489163]
[1641040401606,1.71383411,47092.0,47091.0,0.00489163]
[1641040402406,1.73509363,47092.0,47091.0,0.00489163]
[1641040402607,1.71322736,47092.0,47091.0,0.00489163]
[1641040402862,1.71322736,47092.0,47091.0,0.00049619]
[1641040403264,1.22279198,47092.0,47091.0,0.00049619]
[1641040403461,1.24274114,47092.0,47091.0,0.00049619]
[1641040403661,1.22148162,47092.0,47091.0,0.00049619]
[1641040404462,1.73683944,47092.0,47091.0,0.00489163]
[1641040404665,0.053106,47089.0,47082.0,2.18984767]
[1641040404966,0.053106,47089.0,47083.0,0.00018258]
[1641040405762,0.253106,47089.0,47083.0,0.00018258]
[1641040405962,0.25285048,47089.0,47083.0,0.00018258]
[1641040408816,0.57480285,47089.0,47083.0,0.00018258]
[1641040409015,0.67480285,47089.0,47083.0,0.00018258]
[1641040409417,0.69675328,47089.0,47083.0,0.00018258]
[1641040409619,0.00126087,47085.0,47083.0,0.00018258]
[1641040410017,0.00126087,47085.0,47077.0,0.00937328]
[1641040410018,1.113121,47084.0,47082.0,0.00020084]
[1641040410264,1.25145629,47083.0,47082.0,0.00020084]
[1641040410461,0.54018,47082.0,47081.0,0.00030084]
[1641040410660,0.74140744,47082.0,47081.0,0.00030084]
[1641040410861,1.18470867,47082.0,47081.0,0.00030084]
[1641040411060,1.23783567,47082.0,47081.0,0.00030084]
[1641040411463,1.61068527,47082.0,47081.0,0.00030084]
[1641040411661,1.7293364,47082.0,47081.0,0.00030084]
[1641040411860,1.7293364,47082.0,47071.0,0.002]
[1641040411861,0.00123784,47073.0,47071.0,0.002]
[1641040412065,0.253134,47072.0,47071.0,0.002]
[1641040412261,0.5339401,47072.0,47071.0,0.002]
[1641040412464,1.14851691,47072.0,47071.0,0.002]
[1641040412661,1.8474248,47072.0,47071.0,0.002]
[1641040413463,1.86820515,47072.0,47071.0,0.002]
[1641040413864,1.02282224,47072.0,47071.0,0.002]
[1641040414107,1.50519707,47072.0,47071.0,0.002]
[1641040414307,1.48441672,47072.0,47071.0,0.002]
[1641040414517,1.02198014,47072.0,47071.0,0.002]
[1641040415609,1.04332621,47072.0,47071.0,0.002]
[1641040415809,1.02338796,47072.0,47071.0,0.002]
[1641040416410,1.04466706,47072.0,47071.0,0.002]
[1641040416609,1.02332099,47072.0,47068.0,6.0]
[1641040416812,0.2,47069.0,47068.0,6.0]
[1641040417112,0.3,47069.0,47068.0,6.0]
[1641040418260,0.1,47069.0,47068.0,6.0]
[1641040418459,0.11082535,47069.0,47068.0,6.0]
[1641040418659,0.06082535,47069.0,47068.0,6.0]
[1641040419059,0.01082535,47069.0,47068.0,6.0]
[1641040419462,0.26395335,47069.0,47068.0,6.0]
[1641040419660,0.303128,47069.0,47068.0,6.0]
[1641040419861,0.453128,47069.0,47068.0,6.0]
[1641040420662,0.47152717,47069.0,47068.0,6.0]
[1641040421510,0.70186151,47069.0,47068.0,6.0]
[1641040421711,0.68346234,47069.0,47068.0,6.0]
[1641040423212,0.701921,47069.0,47068.0,6.0]
[1641040423812,0.701921,47069.0,47068.0,5.995]
[1641040424014,0.663128,47069.0,47068.0,5.995]
[1641040424213,0.6842831,47069.0,47068.0,5.995]
[1641040424614,0.70408771,47069.0,47068.0,5.995]
[1641040424816,0.68293261,47069.0,47068.0,5.995]
[1641040425659,0.70362101,47069.0,47068.0,5.995]
[1641040425857,0.6838164,47069.0,47068.0,5.995]
[1641040426259,0.4838164,47069.0,47068.0,5.995]
[1641040426659,0.5044008,47069.0,47068.0,5.995]
[1641040426860,0.4837124,47069.0,47068.0,5.995]
[1641040427657,0.70200738,47069.0,47068.0,5.995]
[1641040427858,0.68142298,47069.0,47068.0,5.995]
[1641040428057,1.5239587,47069.0,47068.0,5.995]
[1641040428660,1.54270923,47069.0,47068.0,5.995]
[1641040428860,1.52441425,47069.0,47068.0,5.995]
[1641040429509,1.54619908,47069.0,47068.0,5.995]
[1641040429710,0.70366336,47069.0,47068.0,5.995]
[1641040429917,1.44414351,47069.0,47068.0,5.995]
[1641040430310,1.40360815,47069.0,47068.0,5.995]
[1641040430717,1.42398366,47069.0,47068.0,5.995]
[1641040431715,2.6893858,47069.0,47068.0,5.995]
[1641040431913,1.54001029,47069.0,47068.0,5.995]
[1641040432314,2.04019749,47069.0,47068.0,5.995]
[1641040432765,2.03756867,47069.0,47068.0,5.995]
[1641040433562,2.05628724,47069.0,47068.0,5.995]
[1641040433760,2.03726371,47069.0,47068.0,5.995]
[1641040433961,2.99924218,47069.0,47068.0,5.995]
[1641040434562,2.03726371,47069.0,47068.0,5.995]
[1641040434761,2.05639284,47069.0,47068.0,5.995]
[1641040435164,3.18539284,47069.0,47068.0,5.995]
[1641040435463,3.14754514,47069.0,47068.0,5.995]
[1641040435663,3.16680914,47069.0,47068.0,5.995]
[1641040435863,1.92426235,47069.0,47068.0,5.995]
[1641040436606,1.7428543,47069.0,47068.0,5.995]
[1641040436808,1.7235903,47069.0,47068.0,5.995]
[1641040437008,1.83593409,47069.0,47068.0,5.995]
[1641040437207,1.09545394,47069.0,47068.0,5.995]
[1641040437910,1.19831548,47069.0,47068.0,5.995]
[1641040438110,1.29831548,47069.0,47068.0,5.995]
[1641040438715,1.31970558,47069.0,47068.0,5.995]
[1641040438912,1.29825209,47069.0,47068.0,5.995]
[1641040439714,1.31923801,47069.0,47068.0,5.995]
[1641040440014,1.29784791,47069.0,47068.0,5.995]
[1641040440662,1.31691805,47069.0,47068.0,5.9937]
[1641040440861,1.29593213,47069.0,47068.0,5.9937]
[1641040441064,2.1405344,47069.0,47068.0,5.9937]
[1641040441763,2.15945875,47069.0,47068.0,5.9937]
[1641040441966,2.14038861,47069.0,47068.0,5.9937]
[1641040442770,2.65899526,47069.0,47068.0,5.9937]
[1641040442968,2.64007091,47069.0,47068.0,5.9937]
[1641040443169,2.64007091,47069.0,47068.0,5.99499]
[1641040443369,1.79546864,47069.0,47068.0,5.99499]
[1641040443572,2.65209387,47069.0,47068.0,5.99499]
[1641040443770,2.6400887,47069.0,47068.0,5.99499]
[1641040444313,2.67019698,47069.0,47068.0,5.99499]
[1641040444714,2.62147697,47069.0,47068.0,5.99499]
[1641040444914,2.64053163,47069.0,47068.0,5.99499]
[1641040445515,2.64053163,47069.0,47068.0,5.99159532]
[1641040445720,2.67352641,47069.0,47068.0,5.99159532]
[1641040445914,2.65447175,47069.0,47068.0,5.99159532]
[1641040446718,2.67609706,47069.0,47068.0,5.99159532]
[1641040447018,2.65641261,47069.0,47068.0,5.99159532]
[1641040447218,2.65615701,47069.0,47068.0,5.99159532]
[1641040447861,2.6533076,47069.0,47068.0,5.99159532]
[1641040448864,2.64051556,47069.0,47068.0,5.99159532]
[1641040449865,2.66008302,47069.0,47068.0,5.99159532]
[1641040450063,3.1721053,47069.0,47068.0,5.99159532]
[1641040450666,3.13432733,47069.0,47068.0,5.99159532]
[1641040450865,3.1556455,47069.0,47068.0,5.99159532]
[1641040451510,4.2846455,47069.0,47068.0,5.99159532]
[1641040451712,4.64309865,47069.0,47068.0,5.99159532]